bitfinex/quotes_SOLUSD_20241021
["timestamp","ask_amount","ask_price","bid_price","bid_amount"]
[1729507465249,5.9869,167.03,167.0,1.49820894]
[1729507465433,5.9862,167.05,167.0,7.48600894]
[1729507465642,5.9862,167.05,167.0,5.9878]
[1729507466948,5.9862,167.05,167.01,1.49811089]
[1729507468245,5.9862,167.05,167.02,1.49811089]
[1729507468426,5.9862,167.05,167.0,8.38475593]
[1729507468628,5.9862,167.05,167.0,5.9878]
[1729507468827,5.9862,167.05,167.01,1.49809974]
[1729507469029,5.9862,167.05,167.02,1.49809974]
[1729507469249,5.9862,167.05,167.0,8.38475959]
[1729507469546,15.6833,167.06,167.01,1.4980929]
[1729507469740,15.6833,167.06,167.02,1.4980929]
[1729507469929,15.6833,167.06,166.98,2.39695959]
[1729507470129,5.9865,167.05,166.99,7.48643086]
[1729507470349,5.9865,167.04,167.0,1.49813086]
[1729507470545,5.9865,167.04,167.01,1.49813086]
[1729507470753,5.9865,167.04,167.02,1.49813086]
[1729507470927,5.9865,167.04,166.99,8.38525959]
[1729507471121,5.9865,167.04,167.0,1.4981522]
[1729507471339,5.9865,167.04,167.01,1.4981522]
[1729507471542,5.9865,167.04,167.02,1.4981522]
[1729507471750,5.9865,167.04,166.99,8.38525959]
[1729507471935,5.9865,167.04,167.0,1.4981522]
[1729507472142,5.9865,167.04,167.01,1.4981522]
[1729507472340,5.9865,167.04,167.02,1.4981522]
[1729507472546,5.9865,167.04,166.99,8.38525959]
[1729507472740,5.9865,167.04,167.0,1.4981536]
[1729507473059,5.9865,167.04,167.01,1.4981536]
[1729507473240,5.9865,167.04,167.02,1.4981536]
[1729507473430,6.6201,167.08,167.02,14.9681]
[1729507473634,6.6201,167.08,167.03,1.49811209]
[1729507473953,6.6201,167.08,167.02,14.9681]
[1729507474256,6.6201,167.08,167.03,1.49802189]
[1729507474431,5.9859,167.06,167.02,14.9681]
[1729507474634,5.9859,167.06,167.03,1.49801467]
[1729507474846,5.9859,167.06,167.02,17.36514576]
[1729507475132,5.9859,167.06,167.03,1.49801564]
[1729507475346,5.9859,167.06,167.04,1.49801564]
[1729507475545,5.9859,167.06,167.02,17.36514576]
[1729507475852,5.9859,167.06,167.03,1.49800535]
[1729507476057,5.9859,167.06,167.02,14.9681]
[1729507476357,5.9859,167.06,167.03,1.49801902]
[1729507476537,5.9859,167.06,167.02,14.9681]
[1729507476739,5.9859,167.06,167.03,1.49802037]
[1729507476943,5.9859,167.06,167.02,14.9681]
[1729507477148,5.9859,167.06,167.03,1.49802721]
[1729507477454,5.9859,167.06,167.04,1.49802721]
[1729507477647,5.9859,167.06,167.02,17.36494428]
[1729507477947,5.9859,167.06,167.03,1.49802768]
[1729507478147,5.9859,167.06,167.04,1.49802768]
[1729507478350,5.9859,167.06,167.02,17.36494428]
[1729507478552,5.9859,167.06,167.03,1.49802768]
[1729507478734,5.9859,167.06,167.04,1.49802768]
[1729507478935,5.9859,167.06,167.02,17.36494428]
[1729507479139,5.9859,167.06,167.03,1.49802768]
[1729507479331,5.9859,167.06,167.04,1.49802768]
[1729507479535,5.9862,167.05,167.02,2.39684428]
[1729507479842,5.9862,167.05,167.03,1.49802674]
[1729507480043,5.9862,167.05,167.04,1.49802674]
[1729507484036,5.9862,167.05,167.04,1.4979726]
[1729507487840,6.6201,167.08,166.96,20.9624]
[1729507488152,5.9878,167.01,166.97,3.89509402]
[1729507488336,5.9878,167.01,166.98,3.89509402]
[1729507488543,5.9878,167.01,166.99,3.89509402]
[1729507488844,5.9878,167.01,167.0,3.89509402]
[1729507492965,5.9878,167.01,167.0,1.49811165]
[1729507493269,12.0671,167.01,167.0,1.49811165]
[1729507493744,5.9894,166.96,166.91,11.96351767]
[1729507493948,5.9894,166.96,166.92,3.89630962]
[1729507494165,5.9894,166.96,166.93,3.89630962]
[1729507494340,5.9894,166.96,166.94,3.89630962]
[1729507494540,5.9894,166.96,166.95,3.89630962]
[1729507494741,5.9894,166.96,166.91,5.9912]
[1729507494955,5.9894,166.96,166.92,3.89647459]
[1729507495161,5.9894,166.96,166.93,3.89647459]
[1729507495362,5.9894,166.96,166.94,3.89647459]
[1729507495568,5.9894,166.96,166.95,3.89647459]
[1729507496465,5.9894,166.96,166.95,1.49864407]
[1729507496845,0.1,166.93,166.88,2.39783052]
[1729507497049,0.1,166.93,166.8,16.5799]
[1729507497050,5.9926,166.87,166.86,2.39899087]
[1729507497256,5.9936,166.85,166.81,2.39899087]
[1729507497574,5.9941,166.84,166.82,2.39899087]
[1729507497743,21.6103,166.88,166.83,2.39899087]
[1729507498099,5.9933,166.86,166.79,5.9955]
[1729507498235,5.9934,166.85,166.8,2.39899087]
[1729507498445,21.6103,166.96,166.84,15.9885]
[1729507498654,21.6103,166.96,166.85,33.60583004]
[1729507498963,21.6103,166.96,166.89,20.9709]
[1729507499167,5.9902,166.94,166.89,14.9792]
[1729507499953,5.9902,166.94,166.89,17.37769973]
[1729507500168,5.9905,166.93,166.87,5.9926]
[1729507500665,21.6103,166.96,166.9,5.9916]
[1729507500870,27.5997,166.96,166.9,5.9916]
[1729507501056,21.6103,166.96,166.89,2.39845765]
[1729507501375,5.9905,166.93,166.88,14.9808]
[1729507501753,5.9902,166.94,166.88,23.37125765]
[1729507501953,5.9902,166.94,166.89,2.39845765]
[1729507502268,21.6103,166.96,166.89,2.39845765]
[1729507502565,5.9908,166.93,166.86,5.9928]
[1729507502750,21.6103,166.96,166.86,5.9928]
[1729507502751,5.9912,166.92,166.86,5.9928]
[1729507502959,5.9913,166.91,166.86,5.9928]
[1729507504276,14.9748,166.95,166.85,2.39845765]
[1729507504472,5.9918,166.9,166.85,2.39845765]
[1729507505272,5.9918,166.9,166.85,2.39878764]
[1729507505658,5.9918,166.9,166.84,20.9771]
[1729507505855,23.776884,166.92,166.8,60.322]
[1729507506050,5.9928,166.87,166.81,8.39368344]
[1729507506562,5.9929,166.87,166.81,8.39368344]
[1729507507591,5.9908,166.93,166.82,5.9944]
[1729507507753,5.9913,166.91,166.85,5.993]
[1729507508073,5.9913,166.91,166.83,20.9791]
[1729507508275,5.9916,166.9,166.83,20.9791]
[1729507508970,5.9916,166.9,166.84,1.49944038]
[1729507509173,5.9916,166.9,166.83,20.9791]
[1729507509570,23.776884,166.95,166.83,20.9791]
[1729507509772,43.876884,166.95,166.83,14.9853]
[1729507509964,5.9923,166.89,166.83,14.9853]
[1729507510277,5.9923,166.88,166.83,14.9853]
[1729507510756,5.9923,166.88,166.82,5.9944]
[1729507512379,23.776884,166.91,166.8,20.9828]
[1729507512675,5.993,166.87,166.8,20.9828]
[1729507513060,5.993,166.87,166.81,1.49970513]
[1729507513378,5.9931,166.86,166.81,1.49970513]
[1729507514476,5.9931,166.86,166.81,21.49970513]
[1729507514780,5.9931,166.86,166.81,20.0]
[1729507515275,5.9947,166.82,166.76,35.9957]
[1729507515460,5.9959,166.78,166.77,1.49984273]
[1729507515782,15.3105,166.81,166.73,2.40013467]
[1729507516080,5.997,166.75,166.72,0.5948699]
[1729507516281,5.9975,166.74,166.72,0.5948699]
[1729507516483,5.9977,166.73,166.72,0.5948699]
[1729507521578,5.9977,166.73,166.6,6.0023]
[1729507521579,16.185,166.73,166.6,6.0023]
[1729507521791,5.9993,166.69,166.63,6.0012]
[1729507522683,16.085,166.73,166.63,6.0012]
[1729507522684,5.9995,166.68,166.63,6.0012]
[1729507523070,5.998,166.72,166.64,6.0006]
[1729507523280,16.085,166.73,166.6,43.876884]
[1729507523458,5.9988,166.7,166.64,6.0006]
[1729507524789,16.085,166.73,166.63,15.0033]
[1729507524961,16.085,166.73,166.64,20.0]
[1729507525157,16.085,166.73,166.59,6.3818]
[1729507525158,6.0003,166.66,166.61,6.0017]
[1729507525362,6.0003,166.66,166.6,6.002]
[1729507525583,6.0003,166.66,166.61,20.0]
[1729507526770,6.001,166.64,166.6,20.0]
[1729507527080,6.0013,166.63,166.57,6.0032]
[1729507528069,6.6538,166.63,166.56,0.5948699]
[1729507528278,6.0032,166.58,166.56,0.5948699]
[1729507528864,21.6571,166.63,166.56,0.5948699]
[1729507529097,6.0025,166.6,166.56,0.5948699]
[1729507529382,15.0042,166.62,166.56,0.5948699]
[1729507530168,6.0034,166.57,166.56,0.5948699]
[1729507533380,6.6538,166.63,166.56,0.5948699]
[1729507534090,6.0023,166.61,166.56,0.5948699]
[1729507534570,6.0023,166.61,166.56,6.5986699]
[1729507534996,16.1275,166.64,166.56,6.5986699]
[1729507534997,22.1285,166.64,166.58,6.0031]
[1729507535289,6.0013,166.63,166.58,6.0031]
[1729507536278,6.0013,166.63,166.57,15.0086]
[1729507536864,6.5343,166.67,166.59,6.0027]
[1729507537292,6.0009,166.64,166.59,6.0027]
[1729507537585,6.0007,166.65,166.59,15.0069]
[1729507537815,6.0011,166.64,166.59,15.0069]
[1729507538001,6.0011,166.64,166.59,21.0096]
[1729507538292,6.0011,166.64,166.59,15.0069]
[1729507538884,6.0006,166.65,166.59,21.0094]
[1729507539400,6.0006,166.65,166.6,6.0023]
[1729507539990,21.9077,166.68,166.63,6.0012]
[1729507540171,15.9082,166.68,166.58,20.0]
[1729507540375,6.0008,166.65,166.59,21.0093]
[1729507540778,6.0008,166.65,166.6,6.0023]
[1729507541473,15.9082,166.68,166.58,20.0]
[1729507541784,15.9082,166.68,166.61,6.0017]
[1729507541980,6.0005,166.66,166.61,6.0017]
[1729507543297,15.9082,166.68,166.62,6.0016]
[1729507543668,15.9082,166.68,166.61,6.0019]
[1729507544073,5.9998,166.67,166.61,6.0019]
[1729507544292,6.0008,166.65,166.6,21.0083]
[1729507544594,6.0002,166.66,166.61,6.0018]
[1729507544910,6.0009,166.64,166.6,15.006]
[1729507546384,6.0002,166.66,166.57,6.0031]
[1729507546592,23.776884,166.67,166.57,6.0031]
[1729507546899,6.0016,166.63,166.57,6.0031]
[1729507547409,6.0016,166.63,166.58,6.0029]
[1729507547571,6.0003,166.66,166.58,6.0031]
[1729507547774,6.0003,166.66,166.6,6.002]
[1729507547999,6.0021,166.61,166.56,6.5985699]
[1729507548181,16.0082,166.68,166.56,0.5948699]
[1729507548385,6.0024,166.6,166.56,0.5948699]
[1729507549719,6.0006,166.65,166.56,0.5948699]
[1729507549893,6.0006,166.65,166.6,6.0022]
[1729507550692,6.001,166.64,166.59,21.0095]
[1729507551601,6.0002,166.66,166.6,6.0022]
[1729507551801,12.1873,166.67,166.58,43.776884]
[1729507551977,15.9082,166.68,166.61,6.0017]
[1729507552304,6.0002,166.66,166.61,21.0061]
[1729507552516,21.908,166.68,166.62,15.004]
[1729507552803,15.9082,166.68,166.63,6.001]
[1729507553014,15.9082,166.68,166.62,21.0053]
[1729507553194,5.9999,166.67,166.62,21.0053]
[1729507553400,6.0009,166.65,166.59,21.0094]
[1729507555494,6.0009,166.65,166.59,15.0067]
[1729507555684,6.0009,166.65,166.6,6.0023]
[1729507558214,15.9082,166.68,166.6,6.0023]
[1729507558215,15.9082,166.68,166.61,6.0019]
[1729507559104,6.0005,166.66,166.61,6.0019]
[1729507559913,6.0006,166.65,166.6,21.0081]
[1729507560414,15.9082,166.68,166.58,6.0027]
[1729507560726,6.0025,166.6,166.56,0.5948699]
[1729507560886,15.0006,166.66,166.56,0.5948699]
[1729507561088,6.0026,166.6,166.56,0.5948699]
[1729507561608,6.0023,166.61,166.56,6.5985699]
[1729507561911,6.0009,166.64,166.56,0.5948699]
[1729507562214,6.0009,166.64,166.58,21.0104]
[1729507562398,6.0009,166.64,166.59,6.0027]
[1729507563311,15.9082,166.68,166.58,20.0]
[1729507563617,6.0009,166.65,166.6,6.0024]
[1729507564309,15.9082,166.68,166.59,4.28]
[1729507564510,6.0016,166.63,166.59,4.28]
[1729507566004,14.9997,166.67,166.59,4.28]
[1729507566005,6.0017,166.62,166.59,4.28]
[1729507566207,6.0017,166.62,166.57,6.0031]
[1729507566407,0.2,166.67,166.56,0.5948699]
[1729507566618,43.776884,166.65,166.56,0.5948699]
[1729507566919,6.0033,166.58,166.56,0.5948699]
[1729507567214,6.0034,166.57,166.56,0.5948699]
[1729507567389,6.0031,166.58,166.56,0.5948699]
[1729507567992,6.0034,166.57,166.56,0.5948699]
[1729507569292,22.6173,166.57,166.56,9.8048699]
[1729507569893,22.6173,166.57,166.56,0.5948699]
[1729507571217,22.6173,166.57,166.5,9.21]
[1729507571218,6.0056,166.51,166.5,9.21]
[1729507572310,6.0069,166.48,166.43,15.0204]
[1729507572513,6.0069,166.48,166.44,1.50289775]
[1729507573003,15.0125,166.53,166.44,1.50289775]
[1729507573206,22.0947,166.5,166.44,1.50289775]
[1729507573413,22.0947,166.5,166.4,2.40460974]
[1729507573620,22.0947,166.5,166.39,21.6285699]
[1729507573621,6.0063,166.49,166.39,21.6285699]
[1729507573920,6.0063,166.49,166.4,9.91757624]
[1729507574107,6.0075,166.46,166.41,1.50306778]
[1729507574306,22.0947,166.5,166.41,16.52526778]
[1729507574620,6.0067,166.48,166.43,6.0084]
[1729507574792,28.101,166.5,166.44,6.0081]
[1729507574992,6.0063,166.49,166.44,6.0081]
[1729507575397,6.007,166.48,166.42,21.03]
[1729507575593,6.0052,166.52,166.43,1.50298205]
[1729507575804,36.896,166.53,166.43,1.50298205]
[1729507576201,6.0072,166.47,166.43,1.50298205]
[1729507576619,6.0076,166.46,166.43,1.50298205]
[1729507576918,21.8835,166.53,166.39,2.99972346]
[1729507576919,21.7835,166.53,166.39,2.99972346]
[1729507577093,21.7835,166.53,166.42,21.0309]
[1729507577094,6.0071,166.47,166.42,21.0309]
[1729507577294,21.7835,166.53,166.42,21.0309]
[1729507577295,6.0064,166.49,166.43,7.51152148]
[1729507577618,21.7835,166.53,166.42,30.0427]
[1729507577813,21.7835,166.53,166.44,23.776884]
[1729507578002,6.0038,166.56,166.49,15.0158]
[1729507578206,16.4635,166.57,166.45,22.40430019]
[1729507578506,6.0045,166.55,166.48,6.0063]
[1729507578815,6.006,166.5,166.46,2.40430019]
[1729507579018,6.0047,166.54,166.48,6.0066]
[1729507579207,15.0096,166.56,166.48,6.0066]
[1729507579208,6.0051,166.53,166.48,6.0066]
[1729507579791,6.0051,166.53,166.47,21.0246]
[1729507580422,6.0052,166.52,166.47,21.0246]
[1729507581418,30.1153,166.59,166.47,21.0246]
[1729507581419,6.0009,166.64,166.51,43.876884]
[1729507581597,22.4923,166.66,166.55,0.1]
[1729507581799,28.4925,166.66,166.59,6.0026]
[1729507581999,28.4925,166.66,166.58,15.0077]
[1729507582000,22.4923,166.66,166.58,15.0077]
[1729507582225,22.4923,166.66,166.56,6.0036]
[1729507582596,6.0006,166.65,166.57,6.0034]
[1729507582798,6.0009,166.64,166.57,6.0034]
[1729507582998,6.002,166.61,166.53,6.0049]
[1729507583308,35.0015,166.65,166.52,21.0182]
[1729507583614,35.0015,166.65,166.5,6.1671]
[1729507583615,20.0,166.65,166.5,6.1671]
[1729507583825,6.0017,166.62,166.55,6.004]
[1729507584117,22.4923,166.66,166.52,0.1]
[1729507584291,22.4923,166.66,166.51,23.876884]
[1729507584292,22.4923,166.66,166.53,0.2]
[1729507584732,28.4925,166.66,166.59,6.0025]
[1729507585092,14.9965,166.71,166.55,0.1]
[1729507585296,5.9998,166.68,166.56,23.776884]
[1729507585504,5.9998,166.68,166.6,21.0076]
[1729507585918,6.1565,166.7,166.61,6.002]
[1729507586123,5.9998,166.67,166.61,6.002]
[1729507586296,6.1565,166.7,166.6,21.0079]
[1729507586501,6.0002,166.66,166.6,21.0079]
[1729507587110,6.0008,166.65,166.58,6.0029]
[1729507587305,6.1565,166.7,166.56,30.0192]
[1729507587517,5.9996,166.68,166.62,6.0016]
[1729507589025,6.1565,166.7,166.62,6.0016]
[1729507589026,5.9991,166.69,166.62,6.0016]
[1729507589195,5.9991,166.69,166.63,6.001]
[1729507589523,5.9991,166.69,166.62,15.0036]
[1729507589701,5.9991,166.69,166.64,6.0009]
[1729507594316,6.0003,166.66,166.62,15.0036]
[1729507594821,5.9991,166.69,166.62,21.0052]
[1729507595002,5.9998,166.68,166.62,21.0052]
[1729507595316,6.1565,166.7,166.62,21.0052]
[1729507595625,6.1565,166.7,166.57,20.0]
[1729507595838,6.1565,166.7,166.6,6.0023]
[1729507596329,6.0004,166.66,166.61,6.0017]
[1729507598128,6.1565,166.7,166.57,20.0]
[1729507598329,5.9992,166.69,166.58,31.74545456]
[1729507598535,5.9996,166.68,166.62,6.0013]
[1729507599229,5.9996,166.68,166.58,30.143884]
[1729507599431,5.9996,166.68,166.63,6.0011]
[1729507601614,6.1565,166.7,166.59,3.87]
[1729507601806,6.0011,166.64,166.59,3.87]
[1729507602299,6.0011,166.64,166.59,9.8726]
[1729507602918,6.0011,166.64,166.59,6.0026]
[1729507603302,29.9986,166.68,166.58,13.29]
[1729507603508,6.002,166.62,166.58,13.29]
[1729507604618,6.002,166.62,166.57,6.0034]
[1729507604824,6.0024,166.6,166.56,21.0133]
[1729507605228,6.0024,166.6,166.56,15.0096]
[1729507605908,6.0031,166.58,166.53,15.0121]
[1729507606110,6.0031,166.58,166.53,21.0168]
[1729507606313,22.0334,166.62,166.51,13.29]
[1729507606530,6.0036,166.57,166.52,1.50213107]
[1729507606728,6.0036,166.57,166.52,7.50733107]
[1729507607031,6.003,166.59,166.53,7.50693893]
[1729507607223,6.0032,166.58,166.53,6.0048]
[1729507610634,6.0047,166.54,166.48,6.0064]
[1729507611016,6.005,166.53,166.48,6.0064]
[1729507611328,6.005,166.53,166.46,2.40409079]
[1729507611329,6.0053,166.52,166.46,8.41144749]
[1729507611537,6.0053,166.52,166.47,14.79266708]
[1729507611717,6.0053,166.52,166.46,6.0072]
[1729507611923,6.0049,166.53,166.47,7.50941635]
[1729507612110,6.0049,166.53,166.47,6.0067]
[1729507613733,22.6963,166.55,166.51,6.0053]
[1729507613939,6.0036,166.57,166.51,6.0053]
[1729507614640,6.0036,166.57,166.51,6.0054]
[1729507615317,6.0036,166.57,166.5,15.0146]
[1729507615634,6.0036,166.57,166.52,6.0052]
[1729507615835,15.8587,166.59,166.54,6.0044]
[1729507616342,6.3144,166.6,166.56,6.0037]
[1729507616535,12.3168,166.6,166.54,6.0043]
[1729507617239,12.3168,166.6,166.5,2.40361905]
[1729507617240,12.3168,166.6,166.55,6.004]
[1729507617755,12.3168,166.6,166.51,2.40361905]
[1729507617756,6.3144,166.6,166.51,2.40361905]
[1729507617942,6.3144,166.6,166.51,15.0139]
[1729507618438,6.0039,166.56,166.51,21.0195]
[1729507619940,6.0035,166.57,166.52,6.0052]
[1729507620437,21.8878,166.66,166.61,6.0017]
[1729507620736,21.8878,166.66,166.55,45.0315]
[1729507620737,21.8878,166.66,166.63,15.0031]
[1729507621059,21.8878,166.66,166.55,15.3177]
[1729507621060,21.8878,166.66,166.57,6.0031]
[1729507621430,6.0014,166.63,166.57,6.0031]
[1729507621616,21.8878,166.66,166.51,0.1]
[1729507621821,6.001,166.64,166.58,6.0031]
[1729507622856,27.8881,166.66,166.58,6.0027]
[1729507623932,6.0006,166.65,166.57,15.008]
[1729507626746,21.8878,166.66,166.53,15.0119]
[1729507626923,6.002,166.62,166.54,7.50662831]
[1729507627125,6.002,166.62,166.54,6.0045]
[1729507630339,6.002,166.61,166.54,6.0045]
[1729507630540,23.776884,166.65,166.51,6.0056]
[1729507630740,6.0028,166.59,166.52,1.50226506]
[1729507630935,23.776884,166.65,166.5,2.40360767]
[1729507631255,6.0037,166.57,166.51,1.50225712]
[1729507631554,20.0,166.64,166.49,21.0213]
[1729507631555,6.0043,166.55,166.49,15.0151]
[1729507631735,6.0043,166.55,166.5,1.50248517]
[1729507632256,6.0047,166.54,166.47,6.007]
[1729507632432,22.7406,166.58,166.48,7.50910941]
[1729507632757,6.0041,166.56,166.49,1.50250941]
[1729507632945,28.744,166.58,166.5,6.0058]
[1729507633128,22.7406,166.58,166.5,6.0058]
[1729507633329,16.2679,166.58,166.52,6.0049]
[1729507633533,6.0034,166.57,166.51,15.0141]
[1729507633947,6.0034,166.57,166.52,1.50236844]
[1729507635051,6.0034,166.57,166.51,15.0141]
[1729507635231,6.0034,166.57,166.52,1.50235338]
[1729507635847,6.0034,166.57,166.51,15.0141]
[1729507636056,6.0034,166.57,166.52,1.50234609]
[1729507636251,16.2679,166.58,166.49,6.0062]
[1729507636448,16.2679,166.58,166.5,1.50252909]
[1729507637033,6.0047,166.54,166.51,1.50252909]
[1729507637226,6.0047,166.54,166.48,23.42734655]
[1729507637227,6.0047,166.54,166.49,2.40404655]
[1729507637460,6.0047,166.54,166.5,1.50253578]
[1729507638437,6.005,166.53,166.5,1.50253578]
[1729507638637,6.005,166.53,166.49,2.40404655]
[1729507638638,6.005,166.53,166.51,1.5026014]
[1729507638832,6.005,166.53,166.48,17.42074655]
[1729507639053,6.005,166.53,166.49,1.50256144]
[1729507639350,16.2679,166.58,166.5,1.50256144]
[1729507639351,6.0053,166.52,166.5,1.50256144]
[1729507639553,6.0053,166.52,166.46,8.41144655]
[1729507639739,6.0058,166.51,166.47,1.50261618]
[1729507640052,6.0058,166.51,166.48,1.50261618]
[1729507640253,6.0058,166.51,166.49,1.50261618]
[1729507640551,6.0058,166.51,166.46,8.41144655]
[1729507640745,6.0058,166.51,166.47,1.50271694]
[1729507640940,6.0058,166.51,166.48,1.50271694]
[1729507641145,6.0058,166.51,166.49,1.50271694]
[1729507641352,6.0058,166.51,166.46,8.41144655]
[1729507641562,6.0058,166.51,166.47,1.50273697]
[1729507641856,6.0058,166.51,166.48,1.50273697]
[1729507642059,6.0058,166.51,166.49,1.50273697]
[1729507642375,6.0058,166.51,166.46,8.41144655]
[1729507642654,6.0067,166.48,166.47,1.50273987]
[1729507642961,6.0067,166.48,166.47,1.50286734]
[1729507643136,6.0062,166.5,166.47,1.50286734]
[1729507643462,6.0062,166.5,166.45,6.0074]
[1729507643630,6.0062,166.5,166.46,1.50283141]
[1729507644461,6.0065,166.49,166.46,1.50283141]
[1729507644631,6.0065,166.49,166.44,2.40458775]
[1729507644632,15.0123,166.53,166.44,2.40458775]
[1729507644962,6.0071,166.47,166.45,1.50290782]
[1729507645156,6.0071,166.47,166.46,1.50290782]
[1729507645336,6.0071,166.47,166.44,1.50290782]
[1729507645665,6.0074,166.46,166.45,1.50294926]
[1729507645835,6.008,166.45,166.39,18.02355765]
[1729507646039,6.0075,166.46,166.41,6.0092]
[1729507646238,6.0075,166.46,166.42,1.50315506]
[1729507646959,6.0078,166.45,166.42,1.50315506]
[1729507647138,6.0078,166.45,166.43,1.50315506]
[1729507647341,6.0078,166.45,166.4,8.41388775]
[1729507647537,6.0084,166.44,166.41,1.50309173]
[1729507647755,6.0087,166.43,166.39,2.99945765]
[1729507647955,6.0087,166.43,166.4,1.50329019]
[1729507648165,6.0087,166.43,166.41,1.50329019]
[1729507648365,6.0087,166.43,166.39,0.5948699]
[1729507648579,6.0087,166.43,166.39,2.09816572]
[1729507650040,6.0087,166.43,166.4,1.50328883]
[1729507650249,6.0087,166.43,166.39,0.5948699]
[1729507650468,6.0087,166.43,166.39,2.09816237]
[1729507652051,6.0081,166.45,166.4,1.50329076]
[1729507652361,6.0081,166.45,166.4,6.0095]
[1729507653074,6.0082,166.44,166.39,6.6047699]
[1729507653271,6.0082,166.44,166.4,1.50329189]
[1729507653756,6.0074,166.46,166.4,6.0096]
[1729507653953,6.565,166.47,166.4,6.0096]
[1729507654155,6.0079,166.45,166.4,6.0096]
[1729507655051,6.565,166.47,166.4,23.776884]
[1729507655267,6.0071,166.47,166.42,6.0088]
[1729507655747,6.0071,166.47,166.41,15.0227]
[1729507655945,6.0062,166.5,166.42,1.50311105]
[1729507656258,6.0063,166.49,166.44,6.0078]
[1729507656662,6.007,166.48,166.43,21.0293]
[1729507656866,6.0076,166.46,166.44,1.50301967]
[1729507657047,6.0076,166.46,166.41,2.4047848]
[1729507657248,6.0076,166.46,166.42,1.50305437]
[1729507657445,6.0076,166.46,166.43,1.50305437]
[1729507657662,6.0076,166.46,166.41,6.0091]
[1729507657871,6.0076,166.46,166.42,1.50309931]
[1729507658165,6.0069,166.48,166.42,7.51169931]
[1729507658372,6.0069,166.48,166.43,1.50309931]
[1729507658858,15.015,166.5,166.43,1.50309931]
[1729507659168,6.0071,166.47,166.43,1.50309931]
[1729507660759,21.495,166.51,166.43,1.50309931]
[1729507660760,6.0067,166.48,166.43,6.0084]
[1729507662052,6.0071,166.47,166.42,21.0304]
[1729507662253,6.0071,166.47,166.43,1.50306517]
[1729507662454,6.0068,166.48,166.43,7.51146517]
[1729507662656,6.0068,166.48,166.43,6.0084]
[1729507663269,6.0068,166.48,166.44,1.50302827]
[1729507663862,27.5007,166.51,166.46,6.0071]
[1729507664060,6.0055,166.52,166.47,7.50975844]
[1729507664269,21.7288,166.55,166.45,15.0186]
[1729507664576,6.0061,166.5,166.46,1.50281958]
[1729507667180,6.0061,166.5,166.45,21.0263]
[1729507667385,6.0061,166.5,166.46,1.50280809]
[1729507670555,21.7288,166.55,166.46,1.50280809]
[1729507670762,6.006,166.5,166.47,1.50280809]
[1729507671084,6.006,166.5,166.45,6.0075]
[1729507671266,6.006,166.5,166.46,1.50281022]
[1729507672199,6.0055,166.52,166.46,7.50991022]
[1729507672361,6.0055,166.52,166.47,1.50281022]
[1729507673482,21.7288,166.55,166.47,1.50281022]
[1729507673483,15.0114,166.54,166.47,1.50281022]
[1729507673688,15.0114,166.54,166.46,6.0074]
[1729507674456,6.0059,166.51,166.46,6.0074]
[1729507674967,6.0061,166.5,166.46,6.0074]
[1729507678283,21.7288,166.55,166.45,2.40462185]
[1729507678284,6.0064,166.49,166.45,2.40462185]
[1729507678475,6.0064,166.49,166.46,1.50287792]
[1729507678667,6.0064,166.49,166.45,2.40462185]
[1729507678869,6.0064,166.49,166.45,3.9075076]
[1729507679067,6.1064,166.49,166.46,1.50288575]
[1729507679278,0.1,166.5,166.46,1.50288575]
[1729507679473,0.1,166.49,166.47,1.50288575]
[1729507679660,0.1,166.49,166.37,21.94944773]
[1729507679864,0.1,166.49,166.38,3.90748026]
[1729507680064,0.1,166.49,166.39,1.50285988]
[1729507680280,0.1,166.49,166.45,6.0075]
[1729507680486,0.1,166.49,166.46,1.50285988]